Workbook

Sheet Task_1
B1: Gas lift performance curve coefficients
B2: a | C2: b | D2: c | E2: d | F2: e | G2: qg_inj | H2: qo | I2: Reservoir GOR | J2: qg_total
B3: [(1/Sm3/d)3] | C3: [(1/Sm3/d)2] | D3: [1/Sm3/d] | F3: [Sm3/d] | G3: [1E03 Sm3/d] | H3: [Sm3/d] | I3: [Sm3/Sm3] | J3: [1E03 Sm3/d]
A4: Well 1 | B4: -3.9e-07 | C4: 0.00021 | D4: -0.043 | E4: 3.7 | F4: 12 | G4: 83.74758942 | H4: =qo_r(G4,B4,C4,D4,E4,F4) -> 124.4432784 | I4: 100 | J4: =(I4*H4/1000)+G4 -> 96.19191726
A5: Well 2 | B5: -1.3e-07 | C5: 0.0001 | D5: -0.028 | E5: 3.1 | F5: -17 | G5: 98.31158064 | H5: =qo_r(G5,B5,C5,D5,E5,F5) -> 100.0170019 | I5: 200 | J5: =(I5*H5/1000)+G5 -> 118.314981
F6: TOTAL= | G6: =SUM(G4:G5) -> 182.0591701 | H6: =SUM(H4:H5) -> 224.4602803 | J6: =SUM(J4:J5) -> 214.5068983
A8: qg_inj_max | B8: [1E03 Sm3/d] | C8: 133
A9: qg_max_sep | B9: [1E03 Sm3/d] | C9: 150

Sheet Task_2
B1: Gas lift performance curve coefficients
B2: a | C2: b | D2: c | E2: d | F2: e | G2: qg_inj | H2: qo | I2: Reservoir GOR | J2: qg_total
B3: [(1/Sm3/d)3] | C3: [(1/Sm3/d)2] | D3: [1/Sm3/d] | F3: [Sm3/d] | G3: [1E03 Sm3/d] | H3: [Sm3/d] | I3: [Sm3/Sm3] | J3: [1E03 Sm3/d]
A4: Well 1 | B4: -3.9e-07 | C4: 0.00021 | D4: -0.043 | E4: 3.7 | F4: 12 | G4: 59.98774809 | H4: =qo_r(G4,B4,C4,D4,E4,F4) -> 119.4998268 | I4: 100 | J4: =(I4*H4/1000)+G4 -> 71.93773077
A5: Well 2 | B5: -1.3e-07 | C5: 0.0001 | D5: -0.028 | E5: 3.1 | F5: -17 | G5: 70.01225191 | H5: =qo_r(G5,B5,C5,D5,E5,F5) -> 93.98447687 | I5: 200 | J5: =(I5*H5/1000)+G5 -> 88.80914729
F6: TOTAL= | G6: =SUM(G4:G5) -> 130 | H6: =SUM(H4:H5) -> 213.4843037 | J6: =SUM(J4:J5) -> 160.7468781
A8: qg_inj_max | B8: [1E03 Sm3/d] | C8: 130
A9: qg_max_sep | B9: [1E03 Sm3/d] | C9: 150

Sheet Task_3
B1: Gas lift performance curve coefficients
B2: a | C2: b | D2: c | E2: d | F2: e | G2: qg_inj | H2: qo | I2: Reservoir GOR | J2: qg_total
B3: [(1/Sm3/d)3] | C3: [(1/Sm3/d)2] | D3: [1/Sm3/d] | F3: [Sm3/d] | G3: [1E03 Sm3/d] | H3: [Sm3/d] | I3: [Sm3/Sm3] | J3: [1E03 Sm3/d]
A4: Well 1 | B4: -3.9e-07 | C4: 0.00021 | D4: -0.043 | E4: 3.7 | F4: 12 | G4: 56.28535102 | H4: =qo_r(G4,B4,C4,D4,E4,F4) -> 117.5618188 | I4: 100 | J4: =(I4*H4/1000)+G4 -> 68.0415329
A5: Well 2 | B5: -1.3e-07 | C5: 0.0001 | D5: -0.028 | E5: 3.1 | F5: -17 | G5: 63.83015293 | H5: =qo_r(G5,B5,C5,D5,E5,F5) -> 90.64166615 | I5: 200 | J5: =(I5*H5/1000)+G5 -> 81.95848616
F6: TOTAL= | G6: =SUM(G4:G5) -> 120.115504 | H6: =SUM(H4:H5) -> 208.203485 | J6: =SUM(J4:J5) -> 150.0000191
A8: qg_inj_max | B8: [1E03 Sm3/d] | C8: 133
A9: qg_max_sep | B9: [1E03 Sm3/d] | C9: 150
